Cogmind - Beta 10.2 @@@ ROGUE MODE // 2021.06.17 @ 13:58:16 Player: K.Ioz Result: Destroyed by Y-45 Defender with Beam Rifle Performance ------------- Evolutions (2) 1000 Regions Visited (7) 1400 Robots Destroyed (15) 75 Value Destroyed (360) 360 Prototype IDs (24) 480 Alien Tech Used (0) 0 Bonus (300) 300 TOTAL SCORE: 3615 Bonus ------- Aligned with FarCom 300 Cogmind --------- Core Integrity 0/550 Matter 88/300 Energy 100/100 System Corruption 2% Temperature Cool (9) Movement Core (100) Ox1 Location -8/Storage Parts ------- > --- POWER (2) -------- (None) > --- PROPULSION (3) --- (None) > --- UTILITY (4) ------ (None) > --- WEAPON (2) ------- Rocket Launcher > --- INVENTORY (4) ---- Light Ion Engine Light Angular Momentum Engine Heat Sink Signal Interpreter Peak State ------------ > --- POWER ------------ Light Ion Engine > --- PROPULSION ------- Potential Leg Flight Unit > --- UTILITY ---------- Sensor Array Experimental Sensor Array Improved Terrain Scanner Advanced Terrain Scan Processor > --- WEAPON ----------- Medium Laser > --- INVENTORY -------- Light Ion Engine Light Angular Momentum Engine Heat Sink High-capacity Battery [Rating: 26] Favorites ----------- Power Light Ion Engine Engine Light Ion Engine Propulsion Flight Unit Leg Aluminum Leg Flight Unit Flight Unit Utility Sensor Array Device Sensor Array Storage Small Storage Unit Processor Advanced Terrain Scan Processor Protection Weapon Shielding Weapon Medium Laser Energy Gun Medium Laser Ballistic Gun Light Assault Rifle Launcher Rocket Launcher Build | -11 -10 -9 -9 -9 -8 -8 -8 ------- Run | Scr Mat Mat Min Exi Min Mat Sto Slots Evolved 4 | . . 2 . . . 2 . Power 1 | . . . . . . 1 . Propulsion 1 | . . . . . . 1 . Utility 2 | . . 2 . . . . . Weapon . | . . . . . . . . Parts Attached 30 | 7 7 1 4 4 . . 7 Power 3 | 1 2 . . . . . . Engine 3 | 1 2 . . . . . . Core . | . . . . . . . . Reactor . | . . . . . . . . Propulsion 7 | 3 2 . . 2 . . . Treads . | . . . . . . . . Leg 4 | 3 . . . 1 . . . Wheel . | . . . . . . . . Hover . | . . . . . . . . Flight 3 | . 2 . . 1 . . . Utility 10 | 1 2 1 3 2 . . 1 Device 7 | . 1 1 2 2 . . 1 Storage 1 | 1 . . . . . . . Processor 1 | . . . 1 . . . . Hackware . | . . . . . . . . Protection 1 | . 1 . . . . . . Artifact . | . . . . . . . . Weapon 10 | 2 1 . 1 . . . 6 Energy Gun 4 | 1 1 . 1 . . . 1 Energy Cannon . | . . . . . . . . Ballistic Gun 1 | 1 . . . . . . . Ballistic Cannon . | . . . . . . . . Launcher 5 | . . . . . . . 5 Special Weapon . | . . . . . . . . Impact Weapon . | . . . . . . . . Slashing Weapon . | . . . . . . . . Piercing Weapon . | . . . . . . . . Special Melee Weapon . | . . . . . . . . Unidentified Prototypes 3 | . . . 1 2 . . . Parts Lost 13 | . . 1 1 . . 4 7 Power 1 | . . . . . . 1 . Propulsion 2 | . . . . . . 2 . Utility 2 | . . . . . . . 2 Weapon 8 | . . 1 1 . . 1 5 Highest Loss Streak 6 | . . 1 1 . . 4 6 Average Slot Usage (%) 74 | . 92 72 78 86 88 64 18 Engine 9 | . 14 11 11 11 11 7 . Leg 5 | . 17 . . . . . . Flight 14 | . 10 22 22 21 22 16 . Device 18 | . 6 18 31 31 33 24 4 Storage 2 | . 9 . . . . . . Processor 5 | . . . 4 11 11 9 4 Protection 1 | . 4 . . . . . . Energy Gun 9 | . 14 11 9 11 11 5 1 Ballistic Gun 4 | . 14 9 . . . . . Launcher 1 | . . . . . . . 7 Naked Turns 14 | . . . . . . . 14 Heaviest Build 13 | 7 13 7 9 9 8 8 8 Greatest Support 30 | 20 20 8 8 30 8 8 3 Greatest Overweight (x) 2 | 1 . . 1 2 . 1 2 Average Overweight (x) . | . . . . . . . . Largest Inventory Capacity 6 | 6 6 4 4 4 4 4 4 Average Capacity 4 | 4 5 4 4 4 4 4 4 Most Carried 6 | 4 6 4 4 4 4 4 4 Average Carried 3 | 1 4 3 3 4 4 3 4 Final Capacity 6 | 6 4 4 4 4 4 4 4 Final Carried 4 | 4 4 4 4 4 4 4 4 Class Distribution -------------------- 41% | Mutant 39% | Scavenger-Scout 18% | Scavenger-Mutant Dominant Class ---------------- Mutant | -10/Materials Scavenger-Mutant | -9/Materials Scavenger-Scout | -9/Mines Scavenger-Scout | -9/Exiles Scavenger-Scout | -8/Mines Scavenger-Scout | -8/Materials Mutant | -8/Storage Resources | -11 -10 -9 -9 -9 -8 -8 -8 ----------- Run | Scr Mat Mat Min Exi Min Mat Sto Matter Collected 512 | 233 106 . 58 . . . 115 Remotely . | . . . . . . . . Salvage Created 337 | . 106 . . . . . 231 Parts 28 | . 10 . . . . . 18 Haulers Intercepted . | . . . . . . . . Recyclers Shooed 1 | . . . . . . . 1 Parts Field Recycled . | . . . . . . . . Retrieved Matter . | . . . . . . . . Parts Self-Destructed . | . . . . . . . . Prevented . | . . . . . . . . Kills | -11 -10 -9 -9 -9 -8 -8 -8 ------- Run | Scr Mat Mat Min Exi Min Mat Sto Combat Hostiles Destroyed 11 | . 3 . . . . . 8 Guns 4 | . 3 . . . . . 1 AOE 7 | . . . . . . . 7 Classes Destroyed 7 | . 3 . . . . . 4 Builder 2 | . . . . . . . 2 Recycler 1 | . . . . . . . 1 Watcher 1 | . 1 . . . . . . Swarmer 6 | . 2 . . . . . 4 Grunt 3 | . 1 . . . . . 2 Sentry 1 | . . . . . . . 1 Hunter 1 | . . . . . . . 1 Best Kill Streak 6 | . 4 . . . . . 6 Combat Bots Only 4 | . 3 . . . . . 4 Max Kills in Single Turn 4 | . 1 . . . . . 4 Gunslinging . | . . . . . . . . Exploded 2 | . . . . . . . 2 Melee . | . . . . . . . . Uniques/NPCs Destroyed . | . . . . . . . . Combat | -11 -10 -9 -9 -9 -8 -8 -8 -------- Run | Scr Mat Mat Min Exi Min Mat Sto Damage Taken 1445 | . 248 83 99 . . 267 748 Core 651 | . 23 35 42 . . 179 372 Absorbed by Shields . | . . . . . . . . Core Remaining (%) 90 | 100 90 . . . 80 . . Volleys Fired 37 | . 13 1 . . . . 23 Largest 2 | . 2 1 . . . . 2 Hottest 96 | . 70 20 . . . . 96 Shots Fired 55 | . 26 1 . . . . 28 Gun 30 | . 26 1 . . . . 3 Cannon . | . . . . . . . . Launcher 25 | . . . . . . . 25 Special . | . . . . . . . . Kinetic 14 | . 13 1 . . . . . Thermal 16 | . 13 . . . . . 3 Explosive 25 | . . . . . . . 25 Electromagnetic . | . . . . . . . . Robot Hit Streak 7 | . 7 . . . . . 4 Robot Miss Streak 6 | . 2 1 . . . . 6 Penetration Max . | . . . . . . . . Secondary Targets 3 | . 3 . . . . . . Max Gunslinging Chain 1 | . 1 . . . . . . Shots Hit Robots 23 | . 18 . . . . . 5 Core Hits 22 | . 5 . . . . . 17 Critical Hits . | . . . . . . . . Critical Kills . | . . . . . . . . Critical Parts Destroyed . | . . . . . . . . Melee Attacks . | . . . . . . . . Impact . | . . . . . . . . Slashing . | . . . . . . . . Piercing . | . . . . . . . . Sneak Attacks . | . . . . . . . . Combat Hostiles . | . . . . . . . . Follow-up Attacks . | . . . . . . . . Damage Inflicted 949 | . 180 . . . . 2 767 Guns 196 | . 180 . . . . . 16 Cannons . | . . . . . . . . Explosions 751 | . . . . . . . 751 Melee . | . . . . . . . . Ramming 2 | . . . . . . 2 . Kinetic 80 | . 80 . . . . . . Thermal 116 | . 100 . . . . . 16 Explosive 751 | . . . . . . . 751 Electromagnetic . | . . . . . . . . Impact . | . . . . . . . . Slashing . | . . . . . . . . Piercing . | . . . . . . . . Highest Corruption 2 | . . . . . . . 2 Average Corruption 2 | . . . . . . . 2 Corruption Purged . | . . . . . . . . Effects 2 | . . . . . . . 2 Message Errors 1 | . . . . . . . 1 Targeting Errors 1 | . . . . . . . 1 Overload Shots . | . . . . . . . . Overflow Damage 77 | . . . . . . . 77 Projectiles . | . . . . . . . . Explosions 77 | . . . . . . . 77 Melee . | . . . . . . . . Knockbacks . | . . . . . . . . Impact . | . . . . . . . . Kinetic . | . . . . . . . . Secondary . | . . . . . . . . Self-Inflicted Damage 304 | . . . . . . 1 303 Shots 11 | . . . . . . . 11 Rammed 1 | . . . . . . 1 . Targets Rammed 1 | . . . . . . 1 . Kicked . | . . . . . . . . Crushed . | . . . . . . . . Highest Temperature 214 | . 214 . . . . . 6 Average Temperature 93 | . 110 . . . . . 3 Received Heat Transfer 174 | . 30 9 . . . 81 54 Effects 1 | . 1 . . . . . . Energy Bleed 1 | . 1 . . . . . . Siege Activations . | . . . . . . . . Robots Corrupted . | . . . . . . . . Combat Hostiles . | . . . . . . . . Parts Fried . | . . . . . . . . Impact Corruptions . | . . . . . . . . Robots Melted . | . . . . . . . . Combat Hostiles . | . . . . . . . . Parts Melted . | . . . . . . . . Heat Transferred 333 | . 296 . . . . . 37 Parts Sabotaged . | . . . . . . . . Parts Stolen . | . . . . . . . . Parts Stripped . | . . . . . . . . Power Chain Reactions . | . . . . . . . . Missiles Intercepted . | . . . . . . . . Alert | -11 -10 -9 -9 -9 -8 -8 -8 ------- Run | Scr Mat Mat Min Exi Min Mat Sto Peak Influence 324 | . 89 117 41 . . 35 324 Initial 41 | . . 37 41 . . . 12 Average 45 | . 56 50 35 . . 5 132 Maximum Alert Level 1 | . . . . . . . 1 Low Security (%) 96 | 100 100 100 100 . 100 100 79 Level 1 3 | . . . . . . . 20 Level 2 . | . . . . . . . . Level 3 . | . . . . . . . . Level 4 . | . . . . . . . . Level 5 . | . . . . . . . . High Security . | . . . . . . . . Max Security . | . . . . . . . . Squads Dispatched 3 | . . 1 . . . . 2 Investigation 1 | . . . . . . . 1 Extermination . | . . . . . . . . Reinforcement 2 | . . 1 . . . . 1 Assault . | . . . . . . . . Garrison . | . . . . . . . . Intercept . | . . . . . . . . Construction Impeded 1 | . . . . . . . 1 Haulers Reinforced . | . . . . . . . . Stealth | -11 -10 -9 -9 -9 -8 -8 -8 --------- Run | Scr Mat Mat Min Exi Min Mat Sto Distress Signals 3 | . . 1 . . . 1 1 Communications Jammed . | . . . . . . . . Distress Signals . | . . . . . . . . Times Spotted 34 | . 5 12 . . . 7 10 Peak Tracking Total 11 | . 5 11 . . . 6 4 Tactical Retreats 3 | . 1 1 . . . 1 . Traps | -11 -10 -9 -9 -9 -8 -8 -8 ------- Run | Scr Mat Mat Min Exi Min Mat Sto Traps Triggered 4 | . . . 2 . . . 2 Indirectly . | . . . . . . . . Trap Hack Attempts . | . . . . . . . . Triggered . | . . . . . . . . Disarmed . | . . . . . . . . Reprogrammed . | . . . . . . . . Reused . | . . . . . . . . Traps Extracted . | . . . . . . . . Installed . | . . . . . . . . Triggered . | . . . . . . . . Machines | -11 -10 -9 -9 -9 -8 -8 -8 ---------- Run | Scr Mat Mat Min Exi Min Mat Sto Machines Disabled 4 | . . . . . . . 4 Max in Single Turn 1 | . . . . . . . 1 Garrison Access 1 | . . . . . . 1 . Machines Sabotaged . | . . . . . . . . Garrisons Compromised . | . . . . . . . . Overloaded Fab Kills . | . . . . . . . . Fab Network Shutdowns . | . . . . . . . . Hacking | -11 -10 -9 -9 -9 -8 -8 -8 --------- Run | Scr Mat Mat Min Exi Min Mat Sto Machines Accessed 14 | . 2 1 1 5 1 2 2 Terminals 7 | . 2 1 . . 1 1 2 Fabricators . | . . . . . . . . Repair Stations . | . . . . . . . . Recycling Units . | . . . . . . . . Scanalyzers . | . . . . . . . . Garrison Access 1 | . . . . . . 1 . Total Hacks 64 | . 3 1 1 50 1 5 3 Successful 55 | . 1 1 1 50 . 2 . Failed 9 | . 2 . . . 1 3 3 Catastrophic 3 | . . . . . 1 1 1 Database Lockouts . | . . . . . . . . Manual 10 | . 2 1 . 1 1 3 2 Terminals 12 | . 3 1 . . 1 4 3 Fabricators . | . . . . . . . . Repair Stations . | . . . . . . . . Recycling Units . | . . . . . . . . Scanalyzers . | . . . . . . . . Garrison Access 1 | . . . . . . 1 . Terminal Hacks 53 | . 1 . 1 50 . 1 . Record 49 | . . . . 49 . . . Open Door 1 | . . . 1 . . . . Branch Access Points 1 | . 1 . . . . . . Locate Traps 1 | . . . . . . 1 . EX-Prototype ID Bank 1 | . . . . 1 . . . Fabricator Hacks . | . . . . . . . . Repair Station Hacks . | . . . . . . . . Recycling Unit Hacks . | . . . . . . . . Scanalyzer . | . . . . . . . . Garrison Access Hacks 1 | . . . . . . 1 . Seal Access 1 | . . . . . . 1 . Unauthorized Hacks 1 | . . 1 . . . . . Terminals 1 | . . 1 . . . . . Assimilate 1 | . . 1 . . . . . Fabricators . | . . . . . . . . Repair Stations . | . . . . . . . . Recycling Units . | . . . . . . . . Scanalyzers . | . . . . . . . . Garrison Access . | . . . . . . . . Data Cores Recovered . | . . . . . . . . Used . | . . . . . . . . Hacking Detections 5 | . 1 . . . 1 1 2 Full Trace Events . | . . . . . . . . Feedback Events . | . . . . . . . . Feedback Blocked . | . . . . . . . . Robot Schematics Acquired . | . . . . . . . . Robots Built . | . . . . . . . . Matter . | . . . . . . . . Time . | . . . . . . . . Total Robot Build Rating . | . . . . . . . . Part Schematics Acquired . | . . . . . . . . Parts Built . | . . . . . . . . Matter . | . . . . . . . . Time . | . . . . . . . . Total Part Build Rating . | . . . . . . . . Parts Repaired . | . . . . . . . . Time . | . . . . . . . . Parts Recycled . | . . . . . . . . Recycled Matter . | . . . . . . . . Retrieved Matter . | . . . . . . . . Retrieved Components . | . . . . . . . . Parts Scanalyzed . | . . . . . . . . Part Schematics Acquired . | . . . . . . . . Parts Damaged . | . . . . . . . . Bothacking | -11 -10 -9 -9 -9 -8 -8 -8 ------------ Run | Scr Mat Mat Min Exi Min Mat Sto Used RIF Installer . | . . . . . . . . Robots Hacked . | . . . . . . . . Non-combat . | . . . . . . . . Combat . | . . . . . . . . Robot Hacks Applied . | . . . . . . . . Relay Couplers Released . | . . . . . . . . Robots Rewired . | . . . . . . . . Allies Hacked . | . . . . . . . . Hacks Repelled . | . . . . . . . . Allies | -11 -10 -9 -9 -9 -8 -8 -8 -------- Run | Scr Mat Mat Min Exi Min Mat Sto Total Allies 4 | . . 1 3 . . . . Largest Group 3 | . . 1 3 . . . . Highest-Rated Group 40 | . . 10 40 . . . . Highest-Rated Ally 16 | . . 10 16 . . . . Total Orders . | . . . . . . . . Ally Attacks . | . . . . . . . . Total Damage . | . . . . . . . . Kills . | . . . . . . . . Allies Corrupted . | . . . . . . . . Allies Melted . | . . . . . . . . Intel | -11 -10 -9 -9 -9 -8 -8 -8 ------- Run | Scr Mat Mat Min Exi Min Mat Sto Robot Analysis Total . | . . . . . . . . Derelict Logs Recovered . | . . . . . . . . Drone Launches . | . . . . . . . . Drone Recoveries . | . . . . . . . . Exploration | -11 -10 -9 -9 -9 -8 -8 -8 ------------- Run | Scr Mat Mat Min Exi Min Mat Sto Turns Passed 1260 | 168 311 109 73 213 137 86 163 Spaces Moved 1884 | 199 335 193 153 475 206 200 123 Core 290 | 150 . . . 3 . 14 123 Treads . | . . . . . . . . Legs 156 | 49 105 . . 2 . . . Wheels . | . . . . . . . . Hover . | . . . . . . . . Flight 1438 | . 230 193 153 470 206 186 . Fastest Speed 37 | 50 37 37 37 37 37 37 50 Average Speed 49 | 76 63 37 38 40 37 38 81 Slowest Speed 150 | 120 120 37 117 150 37 120 150 Overloaded Moves . | . . . . . . . . Propulsion Burnouts . | . . . . . . . . Robots Hopped 21 | . 4 6 2 . 4 5 . Cave-ins Triggered 2 | . . . . . . . 2 Exploration Rate (%) 35 | 5 34 21 39 92 49 27 18 Regions Visited 7 Branch Regions 4 Pre-discovered Areas 1 | . . . . 1 . . . Known Exits Taken . | . . . . . . . . Unknown Exits Taken 7 | 1 1 1 1 1 1 1 . Scrap Searched 1 | . . . 1 . . . . Spaces Dug 110 | . . . . . . . 110 Terrain Destroyed 229 | . . . . . . . 229 Melee . | . . . . . . . . Projectile . | . . . . . . . . AOE 229 | . . . . . . . 229 Terrain Rammed . | . . . . . . . . Walls Destroyed . | . . . . . . . . Machines Disabled . | . . . . . . . . Actions | -11 -10 -9 -9 -9 -8 -8 -8 --------- Run | Scr Mat Mat Min Exi Min Mat Sto Total 2121 | 212 410 223 164 492 262 205 153 Wait 160 | . 43 33 7 10 61 6 . Move 1836 | 198 326 181 149 474 197 190 121 Hop 19 | . 4 5 1 . 4 5 . Pick Up 14 | 4 7 1 1 . . 1 . Fast Attach 26 | 7 3 1 4 4 . . 7 Attach 4 | . 4 . . . . . . Detach 2 | 1 1 . . . . . . Swap . | . . . . . . . . Drop 21 | 2 9 1 2 4 . 3 . Fire 37 | . 13 1 . . . . 23 Melee . | . . . . . . . . Ram . | . . . . . . . . Kick . | . . . . . . . . Crush . | . . . . . . . . Escape Stasis 2 | . . . . . . . 2 Rewire . | . . . . . . . . Trap . | . . . . . . . . Miscellaneous . | . . . . . . . . Route ------- -11/Scrapyard -10/Materials (discovered 2 exits: *Mat / Min) -9/Materials -9/Mines -9/Exiles -8/Mines (discovered 2 exits: *Mat x2) -8/Materials -8/Storage History --------- Turn | Location | Event 7 | -11/Scrapyard | Discovered new exit (range 12) 169 | -11/Scrapyard | Entered Materials 226 | -10/Materials | Identified exit to Mines 356 | -10/Materials | Build established: Mutant 402 | -10/Materials | Discovered new exit (range 12) 480 | -10/Materials | Entered another Materials area 480 | -9/Materials | Evolved 2 slots: Utility x2 587 | -9/Materials | Discovered new exit (range 8) 589 | -9/Materials | Entered Mines 590 | -9/Mines | Assisted by bots powering up and referring to "LRC-V3" 605 | -9/Mines | Found a damaged Exp. Sensor Array with a note attached 606 | -9/Mines | Found Prototype Device 606 | -9/Mines | Identified Exp. Sensor Array 624 | -9/Mines | Met a Derelict who couldn't figure out how to use a Trap Extractor 660 | -9/Mines | Deemed a non-threat by the Exiles lab entrance 660 | -9/Mines | Discovered new exit (range 5) 662 | -9/Mines | Entered Exiles 672 | -9/Exiles | Met 8R-AWN 678 | -9/Exiles | Met EX-HEX 689 | -9/Exiles | Met EX-BIN 697 | -9/Exiles | Aligned with FarCom system 698 | -9/Exiles | Given EX-Vault access code 709 | -9/Exiles | Opened EX-Vault 717 | -9/Exiles | Found Prototype Leg 717 | -9/Exiles | Identified Potential Leg 730 | -9/Exiles | Found Prototype Device 730 | -9/Exiles | Identified Skeleton Box 762 | -9/Exiles | Warned to stay clear of 0b10 Research branches 773 | -9/Exiles | Met EX-DEC 776 | -9/Exiles | Learned location of Zion (-7) 796 | -9/Exiles | Visited The Gauntlet 860 | -9/Exiles | Discovered new exit (range 12) 875 | -9/Exiles | Entered Mines 905 | -8/Mines | Build established: Scavenger-Scout 988 | -8/Mines | Discovered new exit (range 11) 1004 | -8/Mines | Discovered new exit (range 11) 1012 | -8/Mines | Entered Materials 1012 | -8/Materials | Evolved 2 slots: Power x1, Propulsion x1 1091 | -8/Materials | Discovered new exit (range 16) 1098 | -8/Materials | Entered Storage 1122 | -8/Storage | Lost 4 parts (1p2n1w) 1170 | -8/Storage | Core integrity fell below 50% 1189 | -8/Storage | Crushed by falling debris 1194 | -8/Storage | Crushed by falling debris 1195 | -8/Storage | Core integrity fell below 20% 1261 | -8/Storage | Destroyed by Y-45 Defender with Beam Rifle Last Messages --------------- 01245_ K-01 Serf collects debris. 01245_ Penetrated by Slug. 01245_ Rocket Launcher destroyed. 01245_ H-55 Commando destroyed. 01245_ R-06 Scavenger destroyed. 01248_ The unstable cave ceiling collapses. 01250_ |M